bitfinex-derivatives/quotes_BTCF0:USTF0_20241025
["timestamp","ask_amount","ask_price","bid_price","bid_amount"]
[1729885793913,0.1291482,67051.0,67048.0,0.04464056]
[1729885794109,0.1291482,67049.0,67048.0,0.04464056]
[1729885794415,0.1291482,67049.0,67048.0,0.04931123]
[1729885795824,0.1291482,67049.0,67048.0,0.07885539]
[1729885796014,0.0843,67052.0,67048.0,0.08632847]
[1729885796213,0.0843,67052.0,67049.0,0.01214375]
[1729885796414,0.1291482,67050.0,67048.0,0.07418472]
[1729885796620,0.1291482,67050.0,67049.0,0.01214375]
[1729885797523,0.5765882,67050.0,67045.0,0.07418472]
[1729885797725,0.5646242,67046.0,67045.0,0.05948499]
[1729885797919,0.5646242,67046.0,67043.0,0.05948499]
[1729885798118,0.1291482,67044.0,67043.0,0.05948499]
[1729885798423,0.1291482,67044.0,67035.0,0.3608]
[1729885798424,0.1291482,67044.0,67042.0,0.05948499]
[1729885799722,0.3608,67046.0,67043.0,0.05948499]
[1729885800022,0.3608,67046.0,67044.0,0.05948499]
[1729885800023,0.1291482,67045.0,67044.0,0.05948499]
[1729885800218,0.0008,67052.0,67041.0,0.20333292]
[1729885800414,0.1291482,67051.0,67047.0,0.05945408]
[1729885800614,0.1291482,67051.0,67046.0,0.05945408]
[1729885800615,0.074675,67048.0,67046.0,0.05945408]
[1729885800820,0.3608,67047.0,67045.0,0.05945408]
[1729885801017,0.1291482,67046.0,67045.0,0.05945408]
[1729885801316,0.1291482,67046.0,67044.0,0.05945408]
[1729885801511,0.2038252,67046.0,67045.0,0.05945408]
[1729885801711,0.2038252,67046.0,67043.0,0.05945408]
[1729885801712,0.074678,67044.0,67043.0,0.05945408]
[1729885802018,0.074693,67031.0,67030.0,0.08902167]
[1729885802219,1.0545894,67031.0,67030.0,0.08902167]
[1729885802423,0.9254412,67031.0,67030.0,0.08902167]
[1729885803224,0.0747,67025.0,67014.0,0.0919]
[1729885803423,0.3608,67020.0,67014.0,0.0919]
[1729885804321,0.3608,67020.0,67014.0,0.10474047]
[1729885804826,0.074687,67036.0,67024.0,0.0446339]
[1729885805122,0.01303949,67037.0,67029.0,0.2038422]
[1729885805327,0.01303949,67037.0,67030.0,0.0913]
[1729885806215,0.01303949,67037.0,67024.0,0.0446339]
[1729885806420,0.074699,67026.0,67024.0,0.0446339]
[1729885806617,0.074699,67026.0,67023.0,0.14268]
[1729885806819,0.20683881,67037.0,67023.0,0.14268]
[1729885806820,0.074691,67033.0,67026.0,0.074698]
[1729885807422,0.01303949,67037.0,67027.0,0.074697]
[1729885807719,0.01303949,67037.0,67028.0,0.08217022]
[1729885807920,0.01303949,67037.0,67029.0,0.00747522]
[1729885807921,0.074694,67030.0,67029.0,0.00747522]
[1729885808127,0.19379932,67032.0,67023.0,0.15580013]
[1729885808322,0.19379932,67032.0,67024.0,0.00747547]
[1729885808323,0.074697,67027.0,67024.0,0.00747547]
[1729885808622,0.074697,67027.0,67025.0,0.00747547]
[1729885808828,0.074697,67027.0,67026.0,0.00747547]
[1729885809130,0.074692,67032.0,67026.0,0.00747547]
[1729885809427,0.074692,67032.0,67027.0,0.08217247]
[1729885809626,0.074692,67032.0,67027.0,0.074697]
[1729885809818,0.074692,67032.0,67028.0,0.00467219]
[1729885810018,0.08772549,67037.0,67029.0,0.074695]
[1729885810425,0.01303949,67037.0,67029.0,0.074695]
[1729885810929,0.074689,67035.0,67029.0,0.064695]
[1729885811127,0.3608,67040.0,67034.0,0.074688]
[1729885811629,0.3608,67040.0,67035.0,0.00467166]
[1729885811831,0.3608,67040.0,67035.0,0.0862]
[1729885812920,0.3608,67040.0,67036.0,0.00467163]
[1729885813125,0.3608,67040.0,67037.0,0.00467151]
[1729885813327,0.3608,67040.0,67036.0,0.074687]
[1729885813626,0.3608,67040.0,67037.0,0.00467148]
[1729885813828,0.3608,67040.0,67036.0,0.074687]
[1729885814026,0.3608,67040.0,67037.0,0.00467148]
[1729885814229,0.074692,67032.0,67029.0,0.01291899]
[1729885814421,0.074692,67032.0,67030.0,0.01214671]
[1729885814626,0.074692,67032.0,67031.0,0.00467181]
[1729885815325,0.074692,67032.0,67031.0,0.0046718]
[1729885816124,0.074697,67027.0,67026.0,0.0838]
[1729885816326,0.3608,67027.0,67025.0,0.08918309]
[1729885816523,0.1824,67026.0,67025.0,0.08918309]
[1729885817829,0.257098,67026.0,67025.0,0.08918309]
[1729885818530,0.3608,67027.0,67025.0,0.28298241]
[1729885818724,0.0899,67040.0,67025.0,0.28298241]
[1729885818929,0.074687,67036.0,67031.0,0.074692]
[1729885819128,0.3608,67038.0,67037.0,0.074686]
[1729885819631,0.3608,67038.0,67037.0,0.07935752]
[1729885820430,0.3608,67038.0,67037.0,0.00467152]
[1729885820631,0.3608,67038.0,67037.0,0.0491869]
[1729885820819,0.3608,67038.0,67037.0,0.04451538]
[1729885821024,0.3608,67038.0,67037.0,0.11920138]
[1729885821222,0.3608,67038.0,67037.0,0.07935754]
[1729885821529,0.3608,67038.0,67037.0,0.08683188]
[1729885822728,0.3608,67038.0,67037.0,0.08683179]
[1729885823034,0.3608,67038.0,67037.0,0.09430612]
[1729885823228,0.3608,67038.0,67037.0,0.08683179]
[1729885823530,0.3608,67038.0,67034.0,0.14228]
[1729885823531,0.435485,67038.0,67034.0,0.14228]
[1729885823735,0.435485,67038.0,67035.0,0.01214604]
[1729885824033,0.074686,67037.0,67036.0,0.01214604]
[1729885824221,0.3608,67038.0,67025.0,0.44998309]
[1729885824426,0.3608,67038.0,67028.0,0.074696]
[1729885824427,0.074696,67029.0,67028.0,0.074696]
[1729885824637,0.074696,67029.0,67028.0,0.08684245]
[1729885824931,0.074696,67029.0,67028.0,0.01214645]
[1729885825326,0.55535932,67032.0,67025.0,0.01295532]
[1729885825530,0.62929032,67032.0,67031.0,0.04460586]
[1729885826335,0.074696,67029.0,67025.0,0.074699]
[1729885826532,0.074696,67029.0,67027.0,0.074697]
[1729885827238,0.36156,67032.0,67027.0,0.074697]
[1729885827438,0.074697,67027.0,67023.0,0.08764091]
[1729885827633,0.074697,67027.0,67024.0,0.09980138]
[1729885827942,0.074697,67027.0,67025.0,0.09980138]
[1729885828134,0.074697,67027.0,67026.0,0.09980138]
[1729885829439,0.074697,67027.0,67026.0,0.0121478]
[1729885829633,0.074702,67023.0,67020.0,0.074705]
[1729885829830,0.3608,67022.0,67021.0,0.01214869]
[1729885830135,0.435503,67022.0,67021.0,0.01214869]
[1729885831545,0.3608,67022.0,67021.0,0.08685269]
[1729885831747,0.435503,67022.0,67021.0,0.08685269]
[1729885832637,0.435503,67022.0,67021.0,0.074704]
[1729885833043,0.3608,67022.0,67021.0,0.074704]
[1729885833348,0.435503,67022.0,67021.0,0.074704]
[1729885833743,0.435503,67022.0,67019.0,0.07439553]
[1729885833744,0.074705,67020.0,67019.0,0.07439553]
[1729885833937,0.3608,67022.0,67015.0,0.07439553]
[1729885833938,0.53604,67021.0,67015.0,0.07439553]
[1729885834143,0.074713,67013.0,67012.0,0.14910853]
[1729885834337,0.074713,67013.0,67012.0,0.074713]
[1729885834338,0.20394142,67013.0,67012.0,0.074713]
[1729885834643,0.074713,67013.0,67012.0,0.074713]
[1729885836535,0.074715,67011.0,67010.0,0.0128819]
[1729885836839,0.36156,67016.0,67012.0,0.02149688]
[1729885837145,0.3608,67016.0,67009.0,0.14911253]
[1729885837338,0.074716,67010.0,67009.0,0.14911253]
[1729885837537,0.074716,67010.0,67008.0,0.0903]
[1729885837538,0.074717,67009.0,67008.0,0.16469553]
[1729885837743,0.20394542,67009.0,67008.0,0.0903]
[1729885838953,0.20394542,67009.0,67008.0,0.10245123]
[1729885839345,0.20394542,67009.0,67008.0,0.10245124]
[1729885840046,0.20394542,67009.0,67008.0,0.01215124]
[1729885840345,0.20394542,67009.0,67006.0,0.04452888]
[1729885840346,0.12922842,67009.0,67006.0,0.04452888]
[1729885840549,0.0899,67008.0,67005.0,0.04452888]
[1729885840745,0.074722,67005.0,67004.0,0.04452888]
[1729885841054,0.074723,67004.0,67003.0,0.04452888]
[1729885841242,0.3608,67004.0,67002.0,0.04452888]
[1729885841554,0.074724,67003.0,67002.0,0.04452888]
[1729885842247,0.3608,67004.0,66998.0,0.04452888]
[1729885842248,0.074728,66999.0,66998.0,0.04452888]
[1729885843153,0.12922842,67000.0,66996.0,0.04452888]
[1729885843343,0.56475842,66997.0,66996.0,0.04452888]
[1729885843538,0.56475842,66997.0,66996.0,0.05668243]
[1729885844148,0.56475842,66997.0,66996.0,0.01215355]
[1729885844656,0.074733,66995.0,66993.0,0.04452888]
[1729885844856,0.074733,66995.0,66994.0,0.0121536]
[1729885846650,0.074733,66995.0,66994.0,0.01215364]
[1729885847364,0.074733,66995.0,66991.0,0.13022888]
[1729885847365,0.074736,66992.0,66991.0,0.0857]
[1729885848449,0.12922842,66993.0,66988.0,0.01289569]
[1729885848653,0.3608,66989.0,66984.0,0.29427388]
[1729885848853,0.3608,66989.0,66985.0,0.01215495]
[1729885849057,0.3608,66989.0,66986.0,0.01215495]
[1729885849254,0.3608,66989.0,66987.0,0.01215495]
[1729885849467,0.3608,66989.0,66988.0,0.01215495]
[1729885849670,0.3608,66989.0,66988.0,0.08689595]
[1729885850067,0.3608,66989.0,66988.0,0.074741]
[1729885850267,0.074728,66999.0,66994.0,0.074733]
[1729885850463,0.074725,67002.0,67000.0,0.074727]
[1729885850669,0.074732,66996.0,66995.0,0.00096]
[1729885850867,0.074732,66996.0,66995.0,0.01215365]
[1729885851273,0.074732,66996.0,66995.0,0.00467448]
[1729885851473,0.3608,66999.0,66988.0,0.3608]
[1729885851675,0.3608,66999.0,66989.0,0.01215419]
[1729885851676,0.074739,66990.0,66989.0,0.01215419]
[1729885851885,0.074747,66982.0,66981.0,0.04452888]
[1729885852067,0.074747,66982.0,66979.0,0.04452888]
[1729885852068,0.074749,66980.0,66979.0,0.04452888]
[1729885852269,0.074751,66979.0,66978.0,0.3608]
[1729885852578,0.074751,66979.0,66978.0,0.37295607]
[1729885853466,0.074751,66979.0,66978.0,0.36547541]
[1729885853665,0.074751,66979.0,66978.0,0.36547546]
[1729885854268,0.3608,66979.0,66970.0,0.04448049]
[1729885854576,0.074758,66972.0,66971.0,0.00467588]
[1729885854972,0.074761,66970.0,66968.0,0.3608]
[1729885855280,0.49002842,66972.0,66961.0,0.04448049]
[1729885855467,0.49002842,66972.0,66960.0,0.36176]
[1729885855468,0.12922842,66962.0,66960.0,0.48005149]
[1729885855673,0.12922842,66962.0,66961.0,0.00467658]
[1729885855972,0.12922842,66962.0,66961.0,0.01215915]
[1729885856175,0.20399842,66962.0,66961.0,0.01215915]
[1729885856474,0.20399842,66962.0,66961.0,0.07944758]
[1729885857272,0.12922842,66966.0,66965.0,0.074766]
[1729885857485,0.12922842,66966.0,66965.0,0.07944261]
[1729885857674,0.00076,66972.0,66965.0,0.13390503]
[1729885857985,0.21312842,66988.0,66971.0,0.12922842]
[1729885858277,0.21312842,66988.0,66976.0,0.3608]
[1729885858278,0.0839,66988.0,66976.0,0.3608]
[1729885858483,0.19391937,66978.0,66976.0,0.3608]
[1729885858774,0.074753,66977.0,66974.0,0.074756]
[1729885858976,0.074753,66977.0,66975.0,0.00467556]
[1729885859186,0.19391937,66978.0,66974.0,0.074756]
[1729885859187,0.074755,66975.0,66974.0,0.074756]
[1729885859579,0.074759,66972.0,66968.0,0.3608]
[1729885859782,0.19391937,66971.0,66969.0,0.074761]
[1729885860280,0.44396,66977.0,66976.0,0.074754]
[1729885860281,0.36156,66977.0,66976.0,0.074754]
[1729885860475,0.3608,66977.0,66976.0,0.074754]
[1729885860882,0.55471937,66977.0,66968.0,0.37343474]
[1729885861086,0.074754,66976.0,66972.0,0.074758]
[1729885861284,0.19391937,66972.0,66968.0,0.37343474]
[1729885861681,0.074761,66970.0,66968.0,0.44819774]
[1729885861979,0.074762,66969.0,66968.0,0.01263474]
[1729885862179,0.3608,66970.0,66960.0,0.40528049]
[1729885862374,0.26868937,66962.0,66961.0,0.00467655]
[1729885862785,0.074771,66961.0,66960.0,0.3608]
[1729885863978,0.0868,66969.0,66963.0,0.074768]
[1729885864773,0.074767,66964.0,66963.0,0.074768]
[1729885867182,0.435567,66964.0,66963.0,0.074768]
[1729885868081,0.3608,66964.0,66956.0,0.01260775]
[1729885868282,0.074774,66958.0,66957.0,0.00467693]
[1729885868486,0.55471937,66958.0,66951.0,0.074781]
[1729885868781,0.55471937,66958.0,66952.0,0.07945835]
[1729885868982,0.074779,66954.0,66952.0,0.074781]
[1729885869187,0.36156,66958.0,66950.0,0.0127221]
[1729885869387,0.435574,66958.0,66951.0,0.00467759]
[1729885869681,0.3608,66967.0,66955.0,0.3608]
[1729885869883,0.3608,66967.0,66957.0,0.19391937]
[1729885870085,0.3608,66967.0,66955.0,0.3608]
[1729885870086,0.3608,66967.0,66962.0,0.19391937]
[1729885870384,0.3616,66973.0,66963.0,0.24169835]
[1729885870385,0.0008,66973.0,66963.0,0.24169835]
[1729885870580,0.074751,66979.0,66976.0,0.074753]
[1729885870782,0.074751,66979.0,66977.0,0.074753]
[1729885871283,0.074751,66979.0,66978.0,0.074752]
[1729885873186,0.082,66982.0,66975.0,0.04448049]
[1729885873383,0.074748,66982.0,66980.0,0.074749]
[1729885873587,0.3608,66983.0,66975.0,0.04448049]
[1729885873794,0.16232395,67046.0,66982.0,0.3608]
[1729885873795,0.3608,66997.0,66982.0,0.3608]
[1729885874087,0.3608,67010.0,66978.0,0.19391937]
[1729885874088,0.074715,67011.0,66994.0,0.19391937]
[1729885874292,0.3608,67011.0,67001.0,0.3608]
[1729885874488,0.07472,67007.0,67005.0,0.074721]
[1729885874689,0.074722,67005.0,67001.0,0.074726]
[1729885874907,0.074722,67005.0,67002.0,0.074725]
[1729885875395,0.074724,67003.0,67002.0,0.074725]
[1729885875592,0.074725,67002.0,66997.0,0.07473]
[1729885875781,0.074725,67002.0,66998.0,0.01215263]
[1729885875986,0.074719,67008.0,66999.0,0.37295263]
[1729885876299,0.074694,67030.0,67007.0,0.59919986]
[1729885876300,0.074708,67018.0,67007.0,0.59919986]
[1729885876481,0.074708,67018.0,67016.0,0.074709]
[1729885876792,0.0829,67020.0,67007.0,0.59930039]
[1729885876992,0.0829,67020.0,67015.0,0.07471]
[1729885877197,0.074701,67024.0,67016.0,0.074709]
[1729885877381,0.074701,67024.0,67020.0,0.074704]
[1729885877989,0.074702,67023.0,67020.0,0.074704]
[1729885878793,0.19391937,67022.0,67007.0,0.41910382]
[1729885879100,0.3608,67024.0,67010.0,0.074715]
[1729885879101,0.07471,67016.0,67010.0,0.074715]
[1729885879400,0.3608,67024.0,67011.0,0.01214965]
[1729885879583,0.3608,67024.0,67013.0,0.55471937]
[1729885879584,0.074704,67021.0,67013.0,0.55471937]
[1729885879784,0.3608,67024.0,67020.0,0.074704]
[1729885880198,0.3608,67024.0,67015.0,0.07471]
[1729885880397,0.19391937,67022.0,67016.0,0.01214955]
[1729885880697,0.19391937,67022.0,67013.0,0.3608]
[1729885880698,0.074711,67015.0,67013.0,0.3608]
[1729885881085,0.074711,67015.0,67014.0,0.01214957]
[1729885881293,0.074708,67017.0,67014.0,0.01214957]
[1729885881493,0.074709,67016.0,67015.0,0.01214957]
[1729885881890,0.074709,67016.0,67015.0,0.00467291]
[1729885882091,0.074717,67009.0,67007.0,0.00108]
[1729885882294,0.074717,67009.0,67008.0,0.0121509]
[1729885882494,0.074717,67009.0,67008.0,0.00467342]
[1729885882896,0.074717,67009.0,67008.0,0.01215093]
[1729885883297,0.074717,67009.0,67008.0,0.00467342]
[1729885883494,0.074717,67009.0,67008.0,0.01215086]
[1729885884098,0.074717,67009.0,67005.0,0.074721]
[1729885884099,0.074724,67003.0,66999.0,0.436528]
[1729885884400,0.074725,67002.0,67000.0,0.01215176]
[1729885884602,0.19391937,67008.0,67001.0,0.01215193]
[1729885884899,0.3608,67011.0,67002.0,0.00467382]
[1729885885098,0.3608,67011.0,67006.0,0.3608]
[1729885885292,0.3608,67024.0,67010.0,0.19391937]
[1729885885489,0.074704,67021.0,67017.0,0.074708]
[1729885885895,0.074706,67019.0,67017.0,0.074708]
[1729885887303,0.074706,67019.0,67012.0,0.3608]
[1729885887304,0.074707,67019.0,67016.0,0.074709]
[1729885888300,0.074707,67019.0,67018.0,0.074707]
[1729885889103,0.3608,67024.0,67023.0,0.074701]
[1729885889298,0.074697,67027.0,67026.0,0.074698]
[1729885889494,0.19391937,67034.0,67026.0,0.074698]
[1729885889495,0.3608,67034.0,67026.0,0.19391937]
[1729885889700,0.3608,67034.0,67033.0,0.07469]
[1729885889894,0.4509,67041.0,67031.0,0.19391937]
[1729885890194,0.4509,67041.0,67039.0,0.074683]
[1729885890394,0.074683,67040.0,67034.0,0.074689]
[1729885890906,0.074684,67039.0,67034.0,0.074689]
[1729885891199,0.3608,67035.0,67031.0,0.01303744]
[1729885891400,0.3608,67035.0,67031.0,0.074692]
[1729885891599,0.3608,67035.0,67030.0,0.3608]
[1729885891799,0.074686,67037.0,67032.0,0.074691]
[1729885892301,0.4517,67041.0,67032.0,0.074691]
[1729885892497,0.4509,67041.0,67032.0,0.074691]
[1729885892904,0.074688,67035.0,67032.0,0.074691]
[1729885893903,0.435488,67035.0,67032.0,0.074691]
[1729885894108,0.074699,67025.0,67024.0,0.3608]
[1729885896208,0.074707,67018.0,67017.0,0.3608]
[1729885896507,0.074708,67017.0,67015.0,0.16929523]
[1729885897108,0.074708,67017.0,67015.0,0.53009523]
[1729885897303,0.074708,67017.0,67016.0,0.074709]
[1729885897499,0.3608,67029.0,67026.0,0.074698]
[1729885898211,0.0747,67024.0,67021.0,0.3608]
[1729885898507,0.0747,67024.0,67022.0,0.074702]
[1729885898805,0.0747,67024.0,67023.0,0.074701]
[1729885899202,0.0895,67039.0,67023.0,0.074701]
[1729885899203,0.074686,67037.0,67023.0,0.64151937]
[1729885899407,0.3608,67045.0,67036.0,0.14159398]
[1729885899408,0.074682,67041.0,67036.0,0.14159398]
[1729885899711,0.074682,67041.0,67040.0,0.074683]
[1729885899911,0.3608,67045.0,67037.0,0.0847]
[1729885900112,0.074684,67039.0,67037.0,0.0847]
[1729885901104,0.3608,67045.0,67037.0,0.0847]
[1729885901409,0.074685,67038.0,67037.0,0.159386]
[1729885901811,0.074682,67041.0,67038.0,0.074684]
[1729885902114,0.12346567,67040.0,67039.0,0.074683]
[1729885902509,0.074684,67040.0,67039.0,0.074683]
[1729885903911,0.074688,67036.0,67035.0,0.074688]
[1729885905207,0.074688,67036.0,67035.0,0.11926902]
[1729885905728,0.074688,67036.0,67035.0,0.074688]
[1729885906211,0.074688,67036.0,67035.0,0.11926902]
[1729885907317,0.074688,67036.0,67035.0,0.04458102]
[1729885908615,0.074688,67036.0,67035.0,0.11926902]
[1729885908803,0.3608,67045.0,67034.0,0.01257152]
[1729885909007,0.3608,67045.0,67032.0,0.36188]
[1729885909008,0.19391937,67035.0,67032.0,0.04463407]
[1729885909306,0.19391937,67035.0,67028.0,0.05934318]
[1729885909307,0.3608,67038.0,67031.0,0.04463898]
[1729885909615,0.3608,67038.0,67029.0,0.435494]
[1729885909616,0.074694,67030.0,67029.0,0.436454]
[1729885909803,0.074694,67030.0,67029.0,0.435494]
[1729885909804,0.12336972,67030.0,67029.0,0.435494]
[1729885910012,0.074694,67030.0,67029.0,0.435494]
[1729885910311,0.074683,67040.0,67038.0,0.074684]
[1729885910510,0.50836723,67051.0,67040.0,0.074683]
[1729885910511,0.159274,67048.0,67040.0,0.074683]
[1729885910713,0.04937913,67047.0,67044.0,0.074678]
[1729885911014,0.074677,67045.0,67044.0,0.074678]
[1729885911216,0.12405613,67045.0,67044.0,0.074678]
[1729885912011,0.074681,67041.0,67040.0,0.14092]
[1729885913013,0.1238452,67041.0,67040.0,0.14092]
[1729885914517,0.074683,67040.0,67039.0,0.00096]
[1729885914707,0.074689,67035.0,67034.0,0.074689]
[1729885914912,0.074692,67032.0,67031.0,0.074692]
[1729885915116,0.1238562,67032.0,67031.0,0.074692]
[1729885915913,0.1238562,67032.0,67027.0,0.14092]
[1729885915914,0.074694,67030.0,67027.0,0.14092]
[1729885916115,0.1238582,67030.0,67019.0,0.21305775]
[1729885916409,0.1238582,67030.0,67026.0,0.074698]
[1729885916807,0.1238582,67030.0,67027.0,0.074696]
[1729885917013,0.0491642,67030.0,67027.0,0.12915775]
[1729885917211,0.0491642,67030.0,67029.0,0.435495]
[1729885917409,0.0491642,67030.0,67029.0,0.4476414]
[1729885917619,0.074691,67033.0,67032.0,0.074691]
[1729885920923,0.074685,67038.0,67037.0,0.074685]
[1729885921224,0.01286337,67044.0,67037.0,0.14130439]
[1729885921431,0.074675,67047.0,67046.0,0.074676]
[1729885921623,0.1711,67050.0,67042.0,0.074679]
[1729885921624,0.074679,67043.0,67042.0,0.074679]
[1729885922223,0.074684,67039.0,67038.0,0.04463898]
[1729885922419,0.074684,67039.0,67033.0,0.04463898]
[1729885922420,0.20384175,67039.0,67033.0,0.04463898]
[1729885922614,0.074688,67035.0,67034.0,0.01214605]
[1729885923716,0.074682,67041.0,67035.0,0.074688]
[1729885923912,0.36156,67047.0,67034.0,0.04463898]
[1729885923913,0.074687,67036.0,67034.0,0.04463898]
[1729885924120,0.074687,67036.0,67035.0,0.074688]
[1729885925227,0.1239738,67036.0,67035.0,0.074688]
[1729885925923,0.1239738,67036.0,67035.0,0.08683361]
[1729885926220,0.1239738,67036.0,67035.0,0.01214561]
[1729885926421,0.25313155,67036.0,67035.0,0.01214561]
[1729885926622,0.25313155,67036.0,67035.0,0.08683361]
[1729885926922,0.25328143,67036.0,67035.0,0.08683361]
[1729885927226,0.12412368,67036.0,67035.0,0.08683361]
[1729885927821,0.12412368,67036.0,67035.0,0.074688]
[1729885928121,0.12412368,67036.0,67035.0,0.08683374]
[1729885928819,0.04943668,67036.0,67035.0,0.08683374]
[1729885929325,0.12412368,67036.0,67035.0,0.01214574]
[1729885929523,0.04943668,67036.0,67035.0,0.01214574]
[1729885929822,0.04943668,67036.0,67035.0,0.08683374]
[1729885930417,0.04943668,67036.0,67031.0,0.12915775]
[1729885930418,0.26034306,67036.0,67030.0,0.01308938]
[1729885930621,0.12915775,67032.0,67031.0,0.00467177]
[1729885930814,0.25265768,67032.0,67031.0,0.01214662]
[1729885931521,0.2524001,67032.0,67031.0,0.01214662]
[1729885931922,0.074694,67030.0,67029.0,0.3608]
[1729885932123,0.12324535,67030.0,67029.0,0.3608]
[1729885932316,0.12324535,67030.0,67029.0,0.37294669]
[1729885932621,0.074694,67030.0,67029.0,0.46089004]
[1729885932815,0.074694,67030.0,67029.0,0.43542317]
[1729885933016,0.12915775,67032.0,67027.0,0.07462317]
[1729885933017,0.074696,67028.0,67027.0,0.07462317]
[1729885933320,0.12915775,67028.0,67026.0,0.07462317]
[1729885933519,0.12915775,67028.0,67023.0,0.074701]
[1729885933722,0.0747,67024.0,67023.0,0.074701]
[1729885933923,0.0747,67024.0,67023.0,0.17496642]
[1729885934523,0.08916,67035.0,67023.0,0.18972887]
[1729885934824,0.08916,67035.0,67033.0,0.51008621]
[1729885934825,0.074689,67034.0,67033.0,0.51008621]
[1729885935130,0.074689,67034.0,67033.0,0.53535749]
[1729885935631,0.074687,67037.0,67036.0,0.074686]
[1729885936926,0.074687,67037.0,67036.0,0.14927572]
[1729885938233,0.00084,67041.0,67040.0,0.074683]
[1729885938430,0.0838,67048.0,67040.0,0.074683]
[1729885938431,0.0838,67048.0,67040.0,0.31821339]
[1729885938619,0.0838,67048.0,67047.0,0.074675]
[1729885938620,0.158474,67048.0,67047.0,0.074675]
[1729885938820,0.17122865,67048.0,67047.0,0.14925271]
[1729885939032,0.17122865,67048.0,67047.0,0.23644997]
[1729885939239,0.074665,67056.0,67055.0,0.074665]
[1729885939527,0.074665,67056.0,67046.0,0.36176]
[1729885939528,0.074667,67054.0,67053.0,0.3608]
[1729885939732,0.074667,67054.0,67053.0,0.44761066]
[1729885939932,0.074667,67054.0,67053.0,0.53446625]
[1729885940129,0.074667,67054.0,67053.0,0.44872829]
[1729885940324,0.074667,67054.0,67053.0,0.44761066]
[1729885941422,0.074667,67054.0,67053.0,0.44872829]
[1729885942533,0.074667,67054.0,67053.0,0.44761066]
[1729885942835,0.074667,67054.0,67053.0,0.44013816]
[1729885943134,0.074667,67054.0,67053.0,0.44761042]
[1729885944023,0.074658,67063.0,67053.0,0.51521108]
[1729885944327,0.36156,67064.0,67053.0,0.51521108]
[1729885944328,0.36156,67064.0,67063.0,0.074657]
[1729885944524,0.3608,67064.0,67063.0,0.074657]
[1729885945929,0.435456,67064.0,67063.0,0.074657]
[1729885949731,0.074659,67062.0,67055.0,0.12915775]
[1729885950026,0.074659,67062.0,67061.0,0.074659]
[1729885950223,0.074659,67062.0,67061.0,0.07932885]
[1729885950931,0.074659,67062.0,67061.0,0.074659]
[1729885952630,0.074659,67062.0,67061.0,0.07932885]
[1729885953137,0.00076,67071.0,67061.0,0.4946276]
[1729885953343,0.4405,67079.0,67070.0,0.435449]
[1729885953532,0.074644,67075.0,67073.0,0.074645]
[1729885953839,0.074644,67075.0,67074.0,0.074645]
[1729885954139,0.20380175,67075.0,67074.0,0.074645]
[1729885954331,0.074644,67075.0,67074.0,0.08678412]
[1729885955033,0.074644,67075.0,67074.0,0.01213912]
[1729885955539,0.074644,67075.0,67074.0,0.08678412]
[1729885955845,0.515979,67079.0,67077.0,0.074641]
[1729885956140,0.4405,67079.0,67073.0,0.01283662]
[1729885956440,0.074644,67075.0,67074.0,0.01213907]
[1729885956739,0.074644,67075.0,67074.0,0.08678407]
[1729885957431,0.074644,67075.0,67074.0,0.074645]
[1729885957634,0.074641,67078.0,67076.0,0.074642]
[1729885957836,0.074641,67078.0,67077.0,0.074641]
[1729885958241,0.074641,67078.0,67071.0,0.28246451]
[1729885958242,0.074643,67076.0,67071.0,0.28246451]
[1729885958432,0.4405,67079.0,67071.0,0.28246451]
[1729885958731,0.074645,67074.0,67072.0,0.074647]
[1729885958940,0.074646,67073.0,67072.0,0.074647]
[1729885961627,0.074647,67072.0,67071.0,0.15330676]
[1729885961834,0.074647,67072.0,67070.0,0.3608]
[1729885961835,0.074648,67071.0,67070.0,0.3608]
[1729885962441,0.3608,67073.0,67063.0,0.074656]
[1729885962631,0.12915775,67064.0,67062.0,0.04456535]
[1729885962836,0.074658,67062.0,67061.0,0.44819805]
[1729885963036,0.12915775,67071.0,67061.0,0.37353905]
[1729885963238,0.12915775,67071.0,67065.0,0.074654]
[1729885963542,0.074649,67070.0,67069.0,0.074649]
[1729885963735,0.01287253,67075.0,67074.0,0.074644]
[1729885963935,0.074644,67075.0,67074.0,0.074644]
[1729885965139,0.44134,67079.0,67069.0,0.3608]
[1729885965343,0.45323123,67079.0,67069.0,0.3608]
[1729885965534,0.074642,67076.0,67075.0,0.074643]
[1729885970547,0.1561,67087.0,67075.0,0.501]
[1729885970745,0.074636,67083.0,67082.0,0.04467047]
[1729885973145,0.15686,67087.0,67081.0,0.074636]
[1729885973442,0.074632,67085.0,67081.0,0.13420043]
[1729885973647,0.074636,67082.0,67081.0,0.13420043]
[1729885973835,0.074636,67082.0,67081.0,0.074636]
[1729885974744,0.074638,67080.0,67079.0,0.05956443]
[1729885974951,0.074639,67079.0,67078.0,0.05956443]
[1729885975248,0.12915775,67081.0,67077.0,0.05956443]
[1729885975439,0.07464,67078.0,67077.0,0.05956443]
[1729885975636,0.12915775,67081.0,67075.0,0.50208]
[1729885975637,0.12915775,67081.0,67075.0,0.56164443]
[1729885975847,0.074638,67080.0,67079.0,0.04469589]
[1729885976050,0.20379575,67080.0,67079.0,0.04469614]
[1729885976236,0.20379575,67080.0,67079.0,0.04470197]
[1729885978244,0.20379575,67080.0,67076.0,0.05956443]
[1729885978245,0.074641,67077.0,67076.0,0.05956443]
[1729885979053,0.12915775,67080.0,67075.0,0.05956443]
[1729885979248,0.12915775,67080.0,67079.0,0.04472678]
[1729885979553,0.074639,67079.0,67078.0,0.04472678]
[1729885980453,0.20379575,67080.0,67073.0,0.074646]
[1729885980454,0.074641,67077.0,67076.0,0.05956443]
[1729885981142,0.20379575,67080.0,67073.0,0.14892158]
[1729885981143,0.074645,67074.0,67073.0,0.14892158]
[1729885981546,0.074645,67074.0,67073.0,0.07427558]
[1729885981748,0.074646,67073.0,67072.0,0.07427558]
[1729885981950,0.074646,67073.0,67069.0,0.36176]
[1729885981951,0.0742,67073.0,67069.0,0.3608]
[1729885982149,0.0742,67073.0,67069.0,0.43507558]
[1729885982349,0.148848,67073.0,67072.0,0.074647]
[1729885983148,0.074648,67073.0,67072.0,0.14892258]
[1729885983347,0.074648,67073.0,67072.0,0.074647]